[Event "33rd ECCC Open 2017"]
[Site "Antalya"]
[Date "2017.10.11"]
[Round "4"]
[White "Sylvan, Jacob"]
[Black "Ererdem, Gani Eren"]
[Result "1/2-1/2"]
[ECO "C95"]
[WhiteElo "2363"]
[BlackElo "2136"]
[Annotator "NA"]
[PlyCount "61"]
[EventType "team-tourn"]
[EventCountry "TUR"]
[SourceTitle "playchess.com"]
[Source "ChessBase"]
[SourceQuality "1"]
[WhiteTeam "Nordkalotten"]
[BlackTeam "Karaman"]
[TimeControl "40/5400+30:1800+30"]

1. e4 {[%emt 0:00:30]} e5 {[%emt 0:01:00]} 2. Nf3 {[%emt 0:00:00]} Nc6 {[%emt 0:00:30]} 3. Bb5 {[%emt 0:00:00]} a6 {[%emt 0:00:00]} 4. Ba4 {[%emt 0:00:30]} Nf6 {[%emt 0:00:00]} 5. O-O {[%emt 0:00:30]} Be7 {[%emt 0:00:00]} 6. Re1 {[%emt 0:00:00]} b5 {[%emt 0:00:00]} 7. Bb3 {[%emt 0:00:00]} O-O {[%emt 0:00:00]} 8. h3 {[%emt 0:08:30]} d6 {[%emt 0:00:00]} 9. c3 {[%emt 0:00:30]} Nb8 {[%emt 0:00:30]} 10. d4 {[%emt 0:00:00]} Nbd7 {[%emt 0:00:30]} 11. Nbd2 {[%emt 0:00:00]} Bb7 {[%emt 0:00:00]} 12. Bc2 {[%emt 0:00:30]} Re8 {[%emt 0:00:00]} 13. Nf1 {[%emt 0:00:30]} Bf8 {[%emt 0:00:00]} 14. Ng3 {[%emt 0:00:30]} g6 {[%emt 0:00:00]} 15. a4 {[%emt 0:00:30]} Nb6 {[%emt 0:00:00] C95: Closed Ruy Lopez: Breyer Variation with 10 d4} 16. a5 {[%emt 0:08:30]} Nbd7 {[%emt 0:00:00]} 17. b4 {[%emt 0:00:00]} Bg7 {[%emt 0:00:30] [#]} 18. Bb2 $146 {[%emt 0:00:00]} ({Predecessor:} 18. d5 Qb8 19. Bb3 Nf8 20. Ra2 c6 21. dxc6 Bxc6 22. Rd2 Rd8 23. Rd3 {1-0 (37) Caruana,F (2801)-Roiz,M (2579) Bilbao 2014}) 18... d5 {[%emt 0:01:30]} 19. dxe5 {[%emt 0:18:30]} Nxe4 {[%emt 0:00:30]} 20. Nxe4 {[%emt 0:00:30]} dxe4 {[%emt 0:00:30]} 21. Bxe4 {[%emt 0:00:30]} Bxe4 {[%emt 0:00:30]} 22. Rxe4 {[%emt 0:00:00]} Nxe5 {[%emt 0:00:00]} 23. Nxe5 {[%emt 0:00:00]} Qxd1+ {[%emt 0:04:00]} 24. Rxd1 {[%emt 0:00:30]} Rxe5 {[%emt 0:00:00]} 25. Rxe5 {[%emt 0:01:30]} Bxe5 {[%emt 0:00:00]} 26. Rd3 {[%emt 0:00:30]} Bd6 {[%emt 0:00:30]} 27. Bc1 {[%emt 0:00:30]} f6 {[%emt 0:00:30]} 28. Kf1 {[%emt 0:11:30]} Kf7 {[%emt 0:33:30]} 29. Ke2 {[%emt 0:02:30]} Rd8 {[%emt 0:01:30]} 30. Be3 {[%emt 0:02:30]} Be7 {[%emt 0:12:30]} 31. Rxd8 $11 {[%emt 0:01:30]} 1/2-1/2

[Event "33rd ECCC Open 2017"]
[Site "Antalya"]
[Date "2017.10.11"]
[Round "4"]
[White "Van de Griendt, Jan Willem"]
[Black "Johannesson, Oliver"]
[Result "1/2-1/2"]
[ECO "E09"]
[WhiteElo "2354"]
[BlackElo "2273"]
[Annotator "NA"]
[PlyCount "73"]
[EventType "team-tourn"]
[EventCountry "TUR"]
[SourceTitle "playchess.com"]
[Source "ChessBase"]
[SourceQuality "1"]
[WhiteTeam "White Rose"]
[BlackTeam "Fjolnir"]
[TimeControl "40/5400+30:1800+30"]

1. d4 {[%emt 0:00:30]} Nf6 {[%emt 0:01:00]} 2. c4 {[%emt 0:00:30]} e6 {[%emt 0:00:30]} 3. Nf3 {[%emt 0:00:00]} d5 {[%emt 0:00:30]} 4. g3 {[%emt 0:00:00]} Be7 {[%emt 0:00:30]} 5. Bg2 {[%emt 0:00:30]} O-O {[%emt 0:00:00]} 6. O-O {[%emt 0:00:00]} c6 {[%emt 0:00:00]} 7. Qc2 {[%emt 0:00:00]} Nbd7 {[%emt 0:00:00]} 8. Nbd2 {[%emt 0:00:00]} b6 {[%emt 0:00:00]} 9. e4 {[%emt 0:00:00]} dxc4 {[%emt 0:00:30]} 10. Nxc4 {[%emt 0:18:30]} Bb7 {[%emt 0:00:00]} 11. Rd1 {[%emt 0:06:30]} c5 {[%emt 0:01:00]} 12. e5 {[%emt 0:15:30] E09: Closed Catalan: Main Line: 7 Qc2 c6 8 Nbd2} Nd5 {[%emt 0:00:30]} 13. b3 $146 {[%emt 0:09:30]} ({Predecessor:} 13. dxc5 Nxc5 14. Rd4 b5 15. Ne3 Nd7 16. Qe2 Qb6 17. Rg4 f5 18. exf6 N7xf6 19. Nxd5 Bxd5 20. Be3 Qb7 21. Rd4 Rae8 22. Ne1 {½-½ (22) Zeng,C (2522)-Xu,Y (2454) Zhongshan 2015}) 13... Rc8 {[%emt 0:02:30]} 14. Qb2 {[%emt 0:01:30]} b5 {[%emt 0:10:30]} 15. Ne3 {[%emt 0:09:30]} Qb6 {[%emt 0:08:30]} 16. dxc5 {[%emt 0:08:30]} Bxc5 {[%emt 0:04:30]} 17. Nxd5 {[%emt 0:02:30]} Bxd5 {[%emt 0:01:30]} 18. b4 {[%emt 0:00:00]} Be7 {[%emt 0:00:30]} 19. Ne1 $15 {[%emt 0:01:00]} Bc6 {[%emt 0:10:30]} 20. Be3 {[%emt 0:09:36]} Qb7 {[%emt 0:02:30]} 21. Bxc6 {[%emt 0:06:30]} Rxc6 {[%emt 0:00:30]} 22. Rac1 {[%emt 0:02:55]} Rxc1 {[%emt 0:13:30]} 23. Rxc1 {[%emt 0:00:02]} Qd5 {[%emt 0:00:30]} 24. Bd4 {[%emt 0:04:53]} Rd8 {[%emt 0:09:30]} 25. Rc7 {[%emt 0:00:02]} Bf8 {[%emt 0:00:30]} 26. Nc2 {[%emt 0:01:37]} Qe4 {[%emt 0:02:30]} 27. Ne3 {[%emt 0:01:25]} Nb8 {[%emt 0:01:30]} 28. Bc3 {[%emt 0:01:26]} Nc6 {[%emt 0:02:30]} 29. Qc2 {[%emt 0:00:39]} Qf3 {[%emt 0:00:30]} 30. a3 {[%emt 0:00:02]} g6 {[%emt 0:11:54]} 31. Bb2 {[%emt 0:00:26]} Ne7 {[%emt 0:00:24]} 32. Rc3 {[%emt 0:00:29]} a6 {[%emt 0:10:37]} 33. Nf1 {[%emt 0:00:16]} Qd5 {[%emt 0:00:07]} 34. Ne3 {[%emt 0:01:13]} Qf3 {[%emt 0:01:33]} 35. Nf1 {[%emt 0:00:09]} Qd5 {[%emt 0:05:33]} 36. Ne3 {[%emt 0:00:02]} Qf3 {[%emt 0:00:30]} 37. Nf1 {[%emt 0:00:04]} 1/2-1/2

[Event "33rd ECCC Open 2017"]
[Site "Antalya"]
[Date "2017.10.11"]
[Round "4"]
[White "Makolli, Perparim"]
[Black "Longson, Alexander"]
[Result "1-0"]
[ECO "C90"]
[WhiteElo "2333"]
[BlackElo "2317"]
[Annotator "NA"]
[PlyCount "73"]
[EventType "team-tourn"]
[EventCountry "TUR"]
[SourceTitle "playchess.com"]
[Source "ChessBase"]
[SourceQuality "1"]
[WhiteTeam "Hasan Pristina"]
[BlackTeam "3CS Oldham"]
[TimeControl "40/5400+30:1800+30"]

1. e4 {[%emt 0:00:30]} e5 {[%emt 0:01:00]} 2. Nf3 {[%emt 0:00:30]} Nc6 {[%emt 0:00:00]} 3. Bc4 {[%emt 0:00:30]} Nf6 {[%emt 0:00:00]} 4. d3 {[%emt 0:00:30]} Be7 {[%emt 0:00:00]} 5. O-O {[%emt 0:01:30]} O-O {[%emt 0:00:00]} 6. c3 {[%emt 0:00:30]} d6 {[%emt 0:00:30]} 7. Re1 {[%emt 0:00:30]} Na5 {[%emt 0:01:30]} 8. Bb5 {[%emt 0:01:30]} a6 {[%emt 0:00:30]} 9. Ba4 {[%emt 0:00:30]} b5 {[%emt 0:00:00]} 10. Bc2 {[%emt 0:00:30]} c5 {[%emt 0:00:00]} 11. Nbd2 {[%emt 0:01:30]} Nc6 {[%emt 0:00:30]} 12. Nf1 {[%emt 0:00:30]} Re8 {[%emt 0:00:30]} 13. d4 {[%emt 0:02:30] C90: Closed Ruy Lopez with 7...d6: Early deviations} cxd4 {[%emt 0:07:30]} 14. cxd4 {[%emt 0:03:30]} Bg4 {[%emt 0:00:00]} 15. dxe5 {[%emt 0:01:30] [#]} dxe5 $146 {[%emt 0:07:00]} ({Predecessor:} 15... Nxe5 16. Ne3 Bh5 17. h3 Rc8 {0-1 (24) Samhouri,A (2372)-Polgar,J (2682) Khanty-Mansiysk 2010}) 16. Be3 {[%emt 0:06:30]} Qc7 {[%emt 0:20:30]} 17. Qb1 {[%emt 0:19:30] [#]} (17. h3 $11 {remains equal.} Red8 18. Qe2 Bxf3 19. Qxf3) 17... Bxf3 $1 {[%emt 0:10:30]} 18. gxf3 {[%emt 0:00:00]} Nh5 {[%emt 0:00:30]} 19. Bb3 {[%emt 0:15:00]} Nd4 {[%emt 0:03:30]} 20. Bxd4 {[%emt 0:04:30]} exd4 {[%emt 0:00:30]} 21. Ng3 $17 {[%emt 0:05:30]} Nf4 {[%emt 0:02:30]} 22. e5 {[%emt 0:05:30]} d3 {[%emt 0:15:30]} 23. Re4 {[%emt 0:06:30]} Nh3+ {[%emt 0:04:30]} 24. Kg2 {[%emt 0:00:30]} Ng5 {[%emt 0:00:00]} 25. Rd4 {[%emt 0:03:16]} Bc5 {[%emt 0:10:54]} 26. Rg4 {[%emt 0:06:50]} Qxe5 {[%emt 0:01:14]} 27. f4 {[%emt 0:04:25]} Qd4 {[%emt 0:00:33]} 28. Rxg5 {[%emt 0:00:17]} Qxf2+ {[%emt 0:00:20]} 29. Kh3 {[%emt 0:01:07]} Rad8 {[%emt 0:06:01]} 30. Qf1 {[%emt 0:03:26]} Qxb2 {[%emt 0:03:57]} 31. Rxc5 {[%emt 0:02:13]} d2 {[%emt 0:02:47]} 32. Rd1 {[%emt 0:01:46]} Qd4 {[%emt 0:02:12]} 33. Rf5 {[%emt 0:00:50]} Kh8 {[%emt 0:00:23]} 34. Qf3 {[%emt 0:00:52]} Re3 {[%emt 0:00:46]} 35. Qg4 {[%emt 0:00:26]} a5 {[%emt 0:01:11]} 36. Rxf7 {[%emt 0:00:23]} a4 {[%emt 0:00:13]} 37. Rxd2 {[%emt 0:00:26]} 1-0

[Event "33rd ECCC Open 2017"]
[Site "Antalya"]
[Date "2017.10.11"]
[Round "4"]
[White "Kvisvik, Brede"]
[Black "Salihu, Sami"]
[Result "1-0"]
[ECO "A30"]
[WhiteElo "2296"]
[BlackElo "2187"]
[Annotator "NA"]
[PlyCount "147"]
[EventType "team-tourn"]
[EventCountry "TUR"]
[SourceTitle "playchess.com"]
[Source "ChessBase"]
[SourceQuality "1"]
[WhiteTeam "Valerenga"]
[BlackTeam "Dardania"]
[TimeControl "40/5400+30:1800+30"]

1. Nf3 {[%emt 0:00:30]} Nf6 {[%emt 0:01:00]} 2. d4 {[%emt 0:00:30]} e6 {[%emt 0:00:30]} 3. g3 {[%emt 0:00:00]} b6 {[%emt 0:00:30]} 4. Bg2 {[%emt 0:00:00]} Bb7 {[%emt 0:00:30]} 5. O-O {[%emt 0:00:30]} c5 {[%emt 0:00:30]} 6. c4 {[%emt 0:00:30]} cxd4 {[%emt 0:00:00]} 7. Qxd4 {[%emt 0:06:30]} Nc6 {[%emt 0:00:00] A30: Symmetrical English: Double Fianchetto and Hedgehog} 8. Qe3 $146 {[%emt 0:04:30]} ({Predecessor:} 8. Qf4 Ne7 9. b3 Ng6 10. Qd2 Be7 11. Bb2 O-O 12. Nc3 Qb8 13. Rfd1 Rd8 14. Qc2 d5 15. cxd5 Nxd5 16. Nxd5 Rxd5 17. Rxd5 Bxd5 {½-½ (29) Radjabov,T (2733)-Bruzon Batista,L (2698) Tromsoe 2013}) 8... Bc5 {[%emt 0:00:30]} 9. Qg5 {[%emt 0:00:00]} O-O {[%emt 0:00:30]} 10. Nc3 {[%emt 0:00:00]} Nd4 {[%emt 0:01:30]} 11. Nxd4 {[%emt 0:01:30]} Bxg2 {[%emt 0:00:00]} 12. Nxe6 {[%emt 0:01:30]} fxe6 {[%emt 0:02:00]} 13. Kxg2 {[%emt 0:00:30]} h6 {[%emt 0:00:30]} 14. Qg6 {[%emt 0:01:30]} Kh8 {[%emt 0:01:30]} 15. Bf4 {[%emt 0:04:30]} Bd4 {[%emt 0:01:30]} 16. Bd6 {[%emt 0:01:30]} Rg8 {[%emt 0:01:30]} 17. Nb5 {[%emt 0:00:30]} Ne8 {[%emt 0:00:30]} 18. Ba3 {[%emt 0:07:30]} Be5 {[%emt 0:01:30]} 19. Rad1 {[%emt 0:01:30]} a6 {[%emt 0:00:30]} 20. Nd4 {[%emt 0:00:30]} Qc7 {[%emt 0:00:00]} 21. Nf3 {[%emt 0:01:30]} Bf6 {[%emt 0:00:00]} 22. e4 {[%emt 0:13:30]} d6 {[%emt 0:00:30]} 23. b3 {[%emt 0:08:30]} Ra7 {[%emt 0:01:30]} 24. Rd3 {[%emt 0:00:30]} b5 {[%emt 0:00:30]} 25. Rc1 {[%emt 0:00:30]} bxc4 {[%emt 0:06:30]} 26. Rxc4 {[%emt 0:00:30]} Qa5 {[%emt 0:01:30]} 27. Bxd6 {[%emt 0:01:30]} Nxd6 {[%emt 0:01:30]} 28. Rxd6 {[%emt 0:00:00]} Qxa2 {[%emt 0:00:30]} (28... Rf8 $142 29. Rxe6 Raf7) 29. e5 {[%emt 0:03:00]} Be7 {[%emt 0:03:30]} 30. Rxe6 {[%emt 0:00:30]} Rf8 {[%emt 0:02:30]} 31. Qc2 {[%emt 0:05:30]} Qxc2 {[%emt 0:00:30]} 32. Rxc2 {[%emt 0:00:30]} Rb8 {[%emt 0:00:30]} 33. Nd4 {[%emt 0:00:00]} Rd7 {[%emt 0:05:30]} 34. Nc6 {[%emt 0:01:00]} Rc8 {[%emt 0:00:00]} 35. Ra2 {[%emt 0:01:30]} Bc5 {[%emt 0:00:00]} 36. b4 $18 {[%emt 0:00:30]} Bf8 {[%emt 0:00:30]} 37. Rxa6 {[%emt 0:00:30]} Rb7 {[%emt 0:00:30]} 38. b5 {[%emt 0:07:30]} Bc5 {[%emt 0:00:30]} 39. b6 {[%emt 0:00:30]} Rf8 {[%emt 0:01:30]} 40. f4 {[%emt 0:00:00]} Rxb6 {[%emt 0:01:30]} 41. Rxb6 {[%emt 0:03:00]} Bxb6 {[%emt 0:00:30]} 42. Ne7 {[%emt 0:01:30]} Rb8 {[%emt 0:00:00]} 43. f5 {[%emt 0:01:30]} Bc5 {[%emt 0:01:00]} 44. Kh3 {[%emt 0:02:30]} Bxe7 {[%emt 0:05:30]} 45. Rxe7 {[%emt 0:00:00]} Rb2 {[%emt 0:00:30]} 46. Re8+ {[%emt 0:01:00]} Kh7 {[%emt 0:00:30]} 47. e6 {[%emt 0:00:30]} Re2 {[%emt 0:02:30]} 48. g4 {[%emt 0:00:30]} Re3+ {[%emt 0:01:30]} 49. Kg2 {[%emt 0:00:30]} Re5 {[%emt 0:00:30]} 50. e7 {[%emt 0:00:30]} Re4 {[%emt 0:01:30]} 51. Kf3 {[%emt 0:00:30]} Re5 {[%emt 0:00:00]} 52. h4 {[%emt 0:00:30]} h5 {[%emt 0:02:00]} 53. Kf4 {[%emt 0:01:30]} Re1 {[%emt 0:00:30]} 54. gxh5 {[%emt 0:00:00]} Re2 {[%emt 0:01:30]} 55. h6 {[%emt 0:01:00]} Re1 {[%emt 0:00:00]} 56. hxg7 {[%emt 0:00:30]} Kxg7 {[%emt 0:00:00]} 57. Ra8 {[%emt 0:04:30]} Rxe7 {[%emt 0:00:30]} 58. Kg5 {[%emt 0:00:00]} Re1 {[%emt 0:03:30]} 59. Ra7+ {[%emt 0:00:00]} Kg8 {[%emt 0:00:00]} 60. Kf6 {[%emt 0:01:30]} Rh1 {[%emt 0:00:00]} 61. Ra8+ {[%emt 0:00:30]} Kh7 {[%emt 0:00:00]} 62. Ra4 {[%emt 0:01:30]} Kg8 {[%emt 0:00:00]} 63. Rg4+ {[%emt 0:00:00]} Kh7 {[%emt 0:01:30]} 64. Kf7 {[%emt 0:01:00]} Ra1 {[%emt 0:00:00]} 65. Re4 {[%emt 0:03:30]} Ra7+ {[%emt 0:00:00]} 66. Re7 {[%emt 0:00:30]} Ra4 {[%emt 0:00:30]} 67. Kf8+ {[%emt 0:03:30]} Kh6 {[%emt 0:01:30]} 68. Re6+ {[%emt 0:00:30]} Kh7 {[%emt 0:02:30]} 69. f6 {[%emt 0:00:30]} Rxh4 {[%emt 0:00:30]} 70. f7 {[%emt 0:01:30]} Ra4 {[%emt 0:00:30]} 71. Ke7 {[%emt 0:00:30]} Ra7+ {[%emt 0:01:30]} 72. Kf6 {[%emt 0:00:30]} Ra8 {[%emt 0:01:30]} 73. Re8 {[%emt 0:00:30]} Ra6+ {[%emt 0:00:30]} 74. Ke5 {[%emt 0:00:30]} 1-0

[Event "33rd ECCC Open 2017"]
[Site "Antalya"]
[Date "2017.10.11"]
[Round "4"]
[White "Bjornsson, Sigurbjorn"]
[Black "Gantner, Matthias"]
[Result "1/2-1/2"]
[ECO "B80"]
[WhiteElo "2277"]
[BlackElo "2324"]
[Annotator "NA"]
[PlyCount "80"]
[EventType "team-tourn"]
[EventCountry "TUR"]
[SourceTitle "playchess.com"]
[Source "ChessBase"]
[SourceQuality "1"]
[WhiteTeam "Fjolnir"]
[BlackTeam "White Rose"]
[TimeControl "40/5400+30:1800+30"]

1. e4 {[%emt 0:00:30]} c5 {[%emt 0:01:00]} 2. Nf3 {[%emt 0:00:00]} d6 {[%emt 0:00:30]} 3. d4 {[%emt 0:00:00]} cxd4 {[%emt 0:00:30]} 4. Nxd4 {[%emt 0:00:30]} Nf6 {[%emt 0:00:00]} 5. Nc3 {[%emt 0:00:00]} a6 {[%emt 0:00:00]} 6. Be3 {[%emt 0:00:00] LiveBook: 18320 Games} e6 {[%emt 0:00:30]} 7. f3 {[%emt 0:00:00]} b5 {[%emt 0:00:00]} 8. Qd2 {[%emt 0:00:00]} b4 {[%emt 0:01:00] B80: Sicilian Scheveningen: 6 g3 and 6 Be3, including English Attack} (8... Nbd7 9. g4 h6 10. a3 Bb7 11. O-O-O Rc8 12. Kb1 d5 13. exd5 Nxd5 14. Nxd5 Bxd5 15. Be2 Bc5 16. Rhg1 O-O 17. h4 Ne5 18. f4 Nc4 19. Bxc4 bxc4 {0-1 (45) Ponomariov,R (2712)-Wojtaszek,R (2730) Khanty-Mansiysk 2017}) 9. Nce2 {[%emt 0:03:30]} e5 {[%emt 0:00:30]} 10. Nb3 {[%emt 0:00:30]} Nc6 {[%emt 0:01:30]} 11. g4 {[%emt 0:02:30]} h6 {[%emt 0:00:30]} 12. c4 {[%emt 0:03:30]} Be6 {[%emt 0:04:30]} 13. Ng3 {[%emt 0:01:30] [#]} Qc7 $146 {[%emt 0:14:30]} ({Predecessor:} 13... g6 14. h4 h5 15. g5 Nd7 16. Be2 a5 {1-0 (67) Lutz,C (2588)-Ftacnik,L (2553) Germany 2008}) 14. Be2 {[%emt 0:04:30]} Nd7 {[%emt 0:07:30]} 15. Rd1 {[%emt 0:09:30]} Rd8 {[%emt 0:02:30]} 16. O-O {[%emt 0:07:30]} Nc5 {[%emt 0:05:30]} 17. h4 $11 {[%emt 0:15:30]} Be7 {[%emt 0:03:30]} 18. h5 {[%emt 0:03:30]} O-O {[%emt 0:11:30]} 19. Kh1 {[%emt 0:10:30]} Kh7 {[%emt 0:11:30]} 20. Nf5 {[%emt 0:02:30]} Bxf5 {[%emt 0:04:30]} 21. gxf5 {[%emt 0:00:00]} Bh4 {[%emt 0:09:30]} 22. Rg1 {[%emt 0:15:01]} f6 {[%emt 0:03:18]} 23. Rg4 {[%emt 0:08:11]} Bg5 {[%emt 0:00:51]} 24. Rdg1 {[%emt 0:00:07]} Nxb3 {[%emt 0:03:14]} 25. axb3 {[%emt 0:00:06]} Nd4 {[%emt 0:00:00]} 26. Bd1 {[%emt 0:09:31]} Bxe3 {[%emt 0:05:14]} 27. Qxe3 {[%emt 0:00:08]} Rf7 {[%emt 0:01:36]} 28. Qe1 {[%emt 0:00:56]} a5 {[%emt 0:04:14]} 29. Qg3 {[%emt 0:00:17]} Rh8 {[%emt 0:02:16]} 30. Rg6 {[%emt 0:01:06]} Kg8 {[%emt 0:00:07]} 31. Qh4 {[%emt 0:00:28]} Qe7 {[%emt 0:00:55]} 32. Qe1 {[%emt 0:00:53]} Qc7 {[%emt 0:01:31]} 33. Qe3 {[%emt 0:00:35]} Kf8 {[%emt 0:00:19]} 34. Be2 {[%emt 0:01:05]} Qc5 {[%emt 0:01:06]} 35. Bd1 {[%emt 0:01:16]} Rh7 {[%emt 0:01:27]} 36. Qe1 {[%emt 0:01:00]} Nc6 {[%emt 0:00:40]} 37. R1g2 {[%emt 0:00:50]} Nd4 {[%emt 0:00:18]} 38. Qg1 {[%emt 0:00:07]} Nc6 {[%emt 0:01:03]} 39. Qe1 {[%emt 0:00:08]} Nd4 {[%emt 0:00:35]} 40. Qg1 {[%emt 0:00:00]} Nc6 {[%emt 0:00:46]} 1/2-1/2

[Event "33rd ECCC Open 2017"]
[Site "Antalya"]
[Date "2017.10.11"]
[Round "4"]
[White "Fejzullahu, Afrim"]
[Black "Quillan, Gary"]
[Result "0-1"]
[ECO "C19"]
[WhiteElo "2272"]
[BlackElo "2347"]
[Annotator "NA"]
[PlyCount "72"]
[EventType "team-tourn"]
[EventCountry "TUR"]
[SourceTitle "playchess.com"]
[Source "ChessBase"]
[SourceQuality "1"]
[WhiteTeam "Hasan Pristina"]
[BlackTeam "3CS Oldham"]
[TimeControl "40/5400+30:1800+30"]

1. e4 {[%emt 0:00:30]} e6 {[%emt 0:01:00]} 2. d4 {[%emt 0:00:00]} d5 {[%emt 0:00:30]} 3. Nc3 {[%emt 0:00:00]} Bb4 {[%emt 0:00:00]} 4. e5 {[%emt 0:01:30]} c5 {[%emt 0:00:00]} 5. a3 {[%emt 0:00:30]} Bxc3+ {[%emt 0:00:30]} 6. bxc3 {[%emt 0:00:30]} Ne7 {[%emt 0:00:00]} 7. Nf3 {[%emt 0:01:30]} b6 {[%emt 0:01:00]} 8. a4 {[%emt 0:01:30]} Ba6 {[%emt 0:01:30]} 9. Bb5+ {[%emt 0:04:30]} Bxb5 {[%emt 0:01:30]} 10. axb5 {[%emt 0:00:30]} Nd7 {[%emt 0:09:30]} 11. O-O {[%emt 0:01:30]} O-O {[%emt 0:04:30]} 12. Re1 {[%emt 0:01:30]} h6 {[%emt 0:05:30]} 13. Ra4 {[%emt 0:10:30]} a5 {[%emt 0:20:30]} 14. c4 {[%emt 0:16:30]} Rc8 {[%emt 0:16:30]} 15. Bd2 $15 {[%emt 0:14:30]} (15. cxd5 $11 Nxd5 16. Qd2) 15... cxd4 {[%emt 0:12:30]} 16. cxd5 {[%emt 0:00:30]} Nc5 {[%emt 0:00:30]} 17. Rxd4 {[%emt 0:01:30]} exd5 {[%emt 0:03:59]} 18. Rg4 {[%emt 0:09:30]} Nf5 {[%emt 0:03:45]} 19. Rf4 {[%emt 0:02:30]} Qd7 {[%emt 0:01:20]} 20. Bc1 {[%emt 0:08:30]} Ne7 {[%emt 0:03:34]} 21. Nd4 {[%emt 0:07:48]} Ne6 {[%emt 0:02:06]} 22. Rg4 {[%emt 0:07:06]} Nxd4 {[%emt 0:01:08]} 23. Rxd4 {[%emt 0:00:12]} Rfd8 {[%emt 0:02:13]} 24. Bxh6 {[%emt 0:06:00]} Nf5 {[%emt 0:02:32]} 25. Bg5 {[%emt 0:01:35]} Nxd4 {[%emt 0:00:42]} 26. Bxd8 {[%emt 0:00:56]} Nxc2 {[%emt 0:01:08]} 27. Re2 {[%emt 0:00:49]} Rxd8 {[%emt 0:02:03]} 28. Rxc2 {[%emt 0:00:45]} Qxb5 {[%emt 0:00:59]} 29. e6 {[%emt 0:00:16]} fxe6 {[%emt 0:01:01]} 30. Rc7 {[%emt 0:00:13]} d4 {[%emt 0:00:16]} 31. h4 {[%emt 0:00:26]} Qe5 {[%emt 0:01:23]} 32. Rb7 {[%emt 0:01:04]} d3 {[%emt 0:01:13]} 33. Rxb6 {[%emt 0:00:27]} d2 {[%emt 0:01:05]} 34. Rb1 {[%emt 0:00:15]} Qd4 {[%emt 0:00:29]} 35. g3 {[%emt 0:00:30]} a4 {[%emt 0:00:30]} 36. Ra1 {[%emt 0:00:00]} Qxa1 {[%emt 0:00:03]} 0-1

[Event "33rd ECCC Open 2017"]
[Site "Antalya"]
[Date "2017.10.11"]
[Round "4"]
[White "Marsili, Riccardo"]
[Black "Persson, Mats"]
[Result "1/2-1/2"]
[ECO "A25"]
[WhiteElo "2219"]
[BlackElo "2292"]
[Annotator "NA"]
[PlyCount "101"]
[EventType "team-tourn"]
[EventCountry "TUR"]
[SourceTitle "playchess.com"]
[Source "ChessBase"]
[SourceQuality "1"]
[WhiteTeam "Augusta Perusia"]
[BlackTeam "Oslo"]
[TimeControl "40/5400+30:1800+30"]

1. c4 {[%emt 0:00:30]} e5 {[%emt 0:01:00]} 2. g3 {[%emt 0:00:30]} Nc6 {[%emt 0:00:00]} 3. Bg2 {[%emt 0:00:00]} g6 {[%emt 0:00:00]} 4. Nc3 {[%emt 0:00:00]} Bg7 {[%emt 0:00:30] LiveBook: 3474 Games} 5. d3 {[%emt 0:00:30]} f5 {[%emt 0:00:30]} 6. e3 {[%emt 0:00:30]} d6 {[%emt 0:00:30]} 7. Nge2 {[%emt 0:00:30]} Nf6 {[%emt 0:00:00]} 8. O-O {[%emt 0:00:30]} O-O {[%emt 0:00:00]} 9. Rb1 {[%emt 0:00:30]} a5 {[%emt 0:02:30]} 10. a3 {[%emt 0:00:30]} Be6 {[%emt 0:00:30]} 11. Nd5 {[%emt 0:01:30]} Bf7 {[%emt 0:02:30] A25: English Opening vs King's Indian with ...Nc6 but without early d3} (11... g5 12. f4 h6 13. Kh1 Kh8 14. Nec3 gxf4 15. exf4 Nd4 16. Nxf6 Qxf6 17. Bxb7 Rab8 18. Bg2 Qg6 19. Be3 {1-0 (31) Vidit,S (2689)-Amin,B (2662) Doha 2016}) 12. Nec3 {[%emt 0:03:30]} Qd7 {[%emt 0:03:30]} 13. b4 {[%emt 0:03:30]} axb4 {[%emt 0:00:30]} 14. axb4 {[%emt 0:00:00]} Nxd5 {[%emt 0:08:30]} 15. Nxd5 {[%emt 0:00:00]} Rfb8 {[%emt 0:02:30]} 16. b5 {[%emt 0:02:30]} Ne7 {[%emt 0:00:30]} 17. Qc2 $146 {[%emt 0:06:30]} ({Predecessor:} 17. Qb3 Nxd5 18. cxd5 b6 19. Bd2 Ra7 20. Ra1 Rba8 21. Rxa7 Rxa7 22. e4 Be8 23. Rb1 Qc8 24. Bh3 Bd7 25. Kg2 Bf6 26. Qc4 {½-½ (26) Vyskocil,N (2398)-Persson,M (2218) Vienna 2013}) 17... Nxd5 {[%emt 0:00:30]} 18. cxd5 {[%emt 0:00:30]} b6 {[%emt 0:00:30]} 19. Bd2 {[%emt 0:04:30]} Ra7 {[%emt 0:02:30]} 20. e4 {[%emt 0:06:30]} Rba8 {[%emt 0:10:30]} 21. Rfc1 {[%emt 0:16:30]} Ra2 {[%emt 0:16:30]} 22. Qd1 {[%emt 0:02:30]} Be8 {[%emt 0:02:30]} 23. Rc2 {[%emt 0:06:30]} Qf7 {[%emt 0:04:30]} 24. Qc1 {[%emt 0:04:30]} R8a7 {[%emt 0:04:30]} 25. f3 {[%emt 0:06:30]} Bf6 {[%emt 0:05:30]} 26. Bh3 {[%emt 0:09:30]} Rxc2 {[%emt 0:01:30]} 27. Qxc2 {[%emt 0:00:30]} Bd7 {[%emt 0:00:30]} 28. Qc1 {[%emt 0:02:30]} Qe8 {[%emt 0:11:44]} 29. Qb2 {[%emt 0:00:00]} Qa8 {[%emt 0:03:41]} 30. Qc1 {[%emt 0:00:00]} Kf7 {[%emt 0:02:47]} 31. Bc3 {[%emt 0:02:30]} Ra2 {[%emt 0:03:49]} 32. Bb2 {[%emt 0:01:30]} Qa7 {[%emt 0:03:02]} 33. exf5 {[%emt 0:02:50]} g5 {[%emt 0:01:10]} 34. f4 {[%emt 0:05:25]} gxf4 {[%emt 0:01:05]} 35. gxf4 {[%emt 0:00:30]} Bxb5 {[%emt 0:01:30]} 36. Qd1 {[%emt 0:04:33]} Qa4 {[%emt 0:02:53]} 37. Qc1 {[%emt 0:07:13]} c5 {[%emt 0:02:01]} 38. fxe5 {[%emt 0:00:33]} dxe5 {[%emt 0:00:30]} 39. Bc3 {[%emt 0:01:05]} Qh4 {[%emt 0:00:00]} 40. Rb2 {[%emt 0:00:00]} Bg5 {[%emt 0:04:18]} 41. Qf1 {[%emt 0:09:21]} Be3+ {[%emt 0:00:30]} 42. Kh1 {[%emt 0:03:54]} Rxb2 {[%emt 0:00:30]} 43. Bxb2 {[%emt 0:04:19]} Bd4 {[%emt 0:03:30]} 44. Bxd4 {[%emt 0:00:04]} Qxd4 {[%emt 0:01:30]} 45. Qe2 {[%emt 0:06:19]} Qxd5+ {[%emt 0:01:30]} 46. Bg2 {[%emt 0:01:22]} Qxd3 {[%emt 0:00:30]} 47. Qh5+ {[%emt 0:03:27]} Kf6 {[%emt 0:02:30]} 48. Qh4+ {[%emt 0:01:12]} Kxf5 {[%emt 0:01:30]} 49. Bh3+ $11 {[%emt 0:00:10]} Kg6 {[%emt 0:00:00]} 50. Qg4+ {[%emt 0:02:54]} Kf7 {[%emt 0:00:00]} 51. Qe6+ {[%emt 0:00:00]} 1/2-1/2